bitfinex/quotes_SOLUSD_20230404
["timestamp","ask_amount","ask_price","bid_price","bid_amount"]
[1680627429874,20.0,20.855,20.838,17.0]
[1680627430686,20.0,20.855,20.839,20.0]
[1680627430995,20.0,20.855,20.841,20.0]
[1680627436883,17.0,20.854,20.838,114.5827]
[1680627438095,20.0,20.853,20.838,114.5827]
[1680627438298,17.0,20.852,20.838,114.5827]
[1680627440613,24.20120688,20.852,20.838,114.5827]
[1680627441105,66.42168687,20.852,20.838,114.5827]
[1680627441288,20.0,20.851,20.838,114.5827]
[1680627441489,64.29,20.85,20.838,114.5827]
[1680627441794,20.0,20.849,20.838,114.5827]
[1680627442003,37.0,20.848,20.838,114.5827]
[1680627442184,20.0,20.847,20.838,114.5827]
[1680627442389,17.0,20.846,20.838,114.5827]
[1680627442589,37.0,20.846,20.834,110.7691]
[1680627442789,17.0,20.846,20.834,110.7691]
[1680627443002,20.0,20.845,20.834,110.7691]
[1680627443494,17.0,20.844,20.834,110.7691]
[1680627444005,17.0,20.845,20.834,110.7691]
[1680627445292,20.0,20.846,20.834,110.7691]
[1680627445492,20.0,20.848,20.834,110.7691]
[1680627445697,17.0,20.847,20.834,110.7691]
[1680627445900,20.0,20.846,20.834,110.7691]
[1680627446108,17.0,20.845,20.834,110.7691]
[1680627452905,17.0,20.845,20.826,20.0]
[1680627453117,126.4255,20.845,20.826,20.0]
[1680627460320,126.4255,20.845,20.827,17.0]
[1680627460700,126.4255,20.845,20.828,20.0]
[1680627460701,109.4255,20.845,20.828,20.0]
[1680627460902,109.4255,20.845,20.829,17.0]
[1680627462305,109.4255,20.845,20.83,20.0]
[1680627466709,109.4255,20.845,20.831,17.0]
[1680627467105,27.42,20.85,20.831,17.0]
[1680627467414,129.9381,20.855,20.832,40.0]
[1680627467624,129.9381,20.855,20.833,17.0]
[1680627467824,129.9381,20.855,20.834,20.0]
[1680627468005,129.9381,20.855,20.835,37.0]
[1680627468325,17.0,20.854,20.835,37.0]
[1680627469809,17.0,20.854,20.836,20.0]
[1680627485835,52.85209145,20.857,20.837,17.0]
[1680627486139,20.0,20.855,20.838,20.0]
[1680627486433,20.0,20.855,20.839,17.0]
[1680627486627,20.0,20.855,20.84,20.0]
[1680627486831,20.0,20.855,20.841,17.0]
[1680627496235,20.0,20.855,20.84,47.37]
[1680627497722,20.0,20.855,20.841,17.0]
[1680627537678,20.0,20.855,20.841,17.0]
[1680627549683,20.0,20.855,20.84,41.71]
[1680627550293,20.0,20.855,20.839,116.7329]
[1680627550483,17.0,20.854,20.839,116.7329]
[1680627551090,20.0,20.853,20.836,14.66723409]
[1680627551280,20.0,20.853,20.835,20.0]
[1680627551281,17.0,20.852,20.835,20.0]
[1680627551778,17.0,20.852,20.836,17.0]
[1680627556396,17.0,20.853,20.836,17.0]
[1680627562001,21.71,20.85,20.836,17.0]
[1680627564587,21.71,20.85,20.835,17.0]
[1680627565404,21.71,20.85,20.835,37.0]
[1680627568830,21.71,20.85,20.836,20.0]
[1680627575515,31.30649655,20.853,20.836,20.0]
[1680627577119,31.30649655,20.853,20.838,20.0]
[1680627584036,31.30649655,20.853,20.836,20.0]
[1680627590346,116.9372,20.854,20.837,17.0]
[1680627590539,116.9372,20.854,20.838,20.0]
[1680627590746,116.9372,20.854,20.839,17.0]
[1680627592048,116.9372,20.854,20.84,21.7]
[1680627592232,116.9372,20.854,20.841,17.0]
[1680627594047,20.0,20.855,20.841,17.0]
[1680627594250,108.812,20.856,20.841,17.0]
[1680627594429,108.812,20.856,20.842,27.20120688]
[1680627594632,108.812,20.856,20.844,20.0]
[1680627594934,108.812,20.856,20.846,20.0]
[1680627598045,108.812,20.856,20.847,17.0]
[1680627602162,118.4383,20.867,20.85,21.7]
[1680627602355,20.0,20.865,20.85,21.7]
[1680627602961,40.0,20.866,20.85,21.7]
[1680627604039,20.0,20.866,20.85,21.7]
[1680627605342,17.0,20.865,20.85,21.7]
[1680627606553,20.0,20.864,20.85,21.7]
[1680627606851,17.0,20.863,20.85,21.7]
[1680627609261,21.91,20.86,20.842,20.0]
[1680627609649,44.20120688,20.859,20.842,20.0]
[1680627609967,44.20120688,20.859,20.84,48.901207]
[1680627609968,20.0,20.858,20.84,48.901207]
[1680627610171,27.20120688,20.858,20.84,48.901207]
[1680627610469,17.0,20.857,20.84,48.901207]
[1680627610760,20.0,20.856,20.84,48.901207]
[1680627610961,20.0,20.858,20.84,48.901207]
[1680627611266,17.0,20.857,20.841,20.0]
[1680627611447,20.0,20.856,20.841,20.0]
[1680627612364,135.9713,20.856,20.841,20.0]
[1680627617248,135.9713,20.856,20.842,17.0]
[1680627617459,135.9713,20.856,20.843,20.0]
[1680627623159,135.9713,20.856,20.845,20.0]
[1680627623361,115.9713,20.856,20.85,21.7]
[1680627623568,115.9713,20.856,20.851,20.0]
[1680627623963,111.9933,20.861,20.851,20.0]
[1680627623964,133.01106441,20.867,20.851,20.0]
[1680627625268,37.0,20.866,20.851,20.0]
[1680627625569,20.0,20.866,20.851,20.0]
[1680627625872,20.0,20.866,20.852,17.0]
[1680627626466,20.0,20.866,20.853,20.0]
[1680627627874,20.0,20.866,20.854,17.0]
[1680627628758,118.4383,20.867,20.854,17.0]
[1680627628972,118.4383,20.867,20.855,20.0]
[1680627629960,118.4383,20.867,20.85,27.24]
[1680627630174,118.4383,20.867,20.851,20.0]
[1680627630369,20.0,20.866,20.851,20.0]
[1680627631064,118.4383,20.867,20.851,20.0]
[1680627631267,118.4383,20.867,20.847,20.0]
[1680627631466,118.4383,20.867,20.848,37.0]
[1680627631666,118.4383,20.867,20.849,20.0]
[1680627631881,118.4383,20.867,20.85,37.0]
[1680627632284,118.4383,20.867,20.851,20.0]
[1680627633483,118.4383,20.867,20.85,37.0]
[1680627633689,17.0,20.866,20.85,20.0]
[1680627634189,17.0,20.866,20.848,20.0]
[1680627634677,118.4383,20.867,20.849,20.0]
[1680627635074,37.0,20.866,20.845,147.13431347]
[1680627635376,20.0,20.865,20.846,17.0]
[1680627635590,17.0,20.864,20.846,17.0]
[1680627636987,17.0,20.865,20.847,20.0]
[1680627645288,17.0,20.865,20.846,17.0]
[1680627647889,20.0,20.864,20.846,17.0]
[1680627648080,17.0,20.863,20.846,17.0]
[1680627650476,17.0,20.863,20.845,127.13431347]
[1680627651501,20.0,20.862,20.845,127.13431347]
[1680627651786,17.0,20.861,20.845,127.13431347]
[1680627653795,20.0,20.862,20.845,127.13431347]
[1680627654090,17.0,20.861,20.845,127.13431347]
[1680627655486,27.36,20.86,20.84,27.28]
[1680627655690,37.0,20.859,20.836,112.0677]
[1680627656095,20.0,20.858,20.836,112.0677]
[1680627656280,37.0,20.857,20.836,112.0677]
[1680627656696,20.0,20.856,20.836,112.0677]
[1680627656894,37.0,20.855,20.836,112.0677]
[1680627657193,20.0,20.854,20.836,112.0677]
[1680627657402,27.35,20.85,20.835,38.381869]
[1680627657585,19.185,20.849,20.835,38.381869]
[1680627657893,20.0,20.848,20.835,38.381869]
[1680627658190,17.0,20.847,20.835,38.381869]
[1680627658391,20.0,20.846,20.835,38.381869]
[1680627658598,20.0,20.844,20.835,38.381869]
[1680627658988,20.0,20.842,20.835,38.381869]
[1680627659188,17.0,20.841,20.835,38.381869]
[1680627662100,17.0,20.841,20.826,118.0183]
[1680627663490,17.0,20.843,20.826,118.0183]
[1680627664299,17.0,20.844,20.827,20.0]
[1680627664488,20.0,20.846,20.827,20.0]
[1680627664691,17.0,20.845,20.828,17.0]
[1680627665301,126.7619,20.845,20.828,17.0]
[1680627665499,20.0,20.844,20.826,118.0183]
[1680627665695,20.0,20.844,20.824,20.0]
[1680627666000,17.0,20.843,20.826,20.0]
[1680627666390,17.0,20.844,20.826,20.0]
[1680627668905,17.0,20.844,20.825,134.7235]
[1680627669206,17.0,20.844,20.826,20.0]
[1680627669612,17.0,20.844,20.825,134.7235]
[1680627670297,17.0,20.844,20.826,20.0]
[1680627671892,17.0,20.844,20.825,134.7235]
[1680627672290,17.0,20.844,20.826,20.0]
[1680627673408,17.0,20.844,20.827,17.0]
[1680627675893,17.0,20.844,20.828,20.0]
[1680627678816,17.0,20.844,20.827,17.0]
[1680627681710,17.0,20.844,20.826,17.0]
[1680627682112,17.0,20.844,20.827,20.0]
[1680627683015,17.0,20.844,20.825,117.7235]
[1680627683822,17.0,20.844,20.826,20.0]
[1680627684128,31.18339114,20.844,20.826,20.0]
[1680627687926,31.18339114,20.844,20.825,117.7235]
[1680627689526,31.18339114,20.844,20.826,20.0]
[1680627691830,31.18339114,20.844,20.825,117.7235]
[1680627694621,31.18339114,20.844,20.826,20.0]
[1680627712422,31.18339114,20.844,20.827,17.0]
[1680627718346,20.0,20.843,20.827,17.0]
[1680627718541,31.18339114,20.844,20.826,17.0]
[1680627719649,31.18339114,20.844,20.827,20.0]
[1680627721744,31.18339114,20.844,20.825,117.7235]
[1680627721955,20.0,20.843,20.825,117.7235]
[1680627722259,21.94,20.84,20.825,117.7235]
[1680627723048,21.94,20.84,20.826,20.0]
[1680627724149,21.94,20.84,20.825,117.7235]
[1680627724349,21.94,20.84,20.826,17.0]
[1680627724939,21.94,20.84,20.827,20.0]
[1680627727640,21.94,20.84,20.826,17.0]
[1680627728148,21.94,20.84,20.825,117.7235]
[1680627728354,17.0,20.839,20.825,117.7235]
[1680627728742,21.94,20.84,20.825,117.7235]
[1680627730055,21.94,20.84,20.826,20.0]
[1680627732152,34.18339114,20.844,20.826,20.0]
[1680627732335,17.0,20.843,20.826,20.0]
[1680627732857,17.0,20.843,20.827,17.0]
[1680627737954,119.2827,20.845,20.827,17.0]
[1680627738152,119.2827,20.845,20.831,20.0]
[1680627738338,132.04499153,20.856,20.832,17.0]
[1680627738539,132.04499153,20.856,20.84,21.82]
[1680627738743,117.6763,20.856,20.841,17.0]
[1680627739050,20.0,20.865,20.843,20.0]
[1680627739268,20.0,20.865,20.844,17.0]
[1680627739558,20.0,20.865,20.844,24.19900344]
[1680627739952,117.1103,20.866,20.846,19.188]
[1680627740144,117.1103,20.866,20.848,20.0]
[1680627740344,117.1103,20.866,20.849,17.0]
[1680627740546,20.0,20.865,20.85,20.0]
[1680627742446,117.1103,20.866,20.85,20.0]
[1680627742647,20.0,20.865,20.85,20.0]
[1680627743753,20.0,20.865,20.848,20.0]
[1680627743965,20.0,20.865,20.847,20.0]
[1680627745964,17.0,20.864,20.847,20.0]
[1680627746851,17.0,20.864,20.843,27.19900344]
[1680627747046,20.0,20.863,20.845,20.0]
[1680627747354,17.0,20.862,20.845,20.0]
[1680627750749,17.0,20.864,20.845,20.0]
[1680627753252,17.0,20.865,20.845,20.0]
[1680627753459,17.0,20.865,20.844,37.0]
[1680627753677,17.0,20.865,20.844,20.0]
[1680627753877,20.0,20.864,20.844,20.0]
[1680627754176,17.0,20.863,20.844,20.0]
[1680627754552,17.0,20.865,20.842,20.0]
[1680627754767,20.0,20.864,20.844,20.0]
[1680627754961,17.0,20.863,20.844,20.0]
[1680627755166,17.0,20.863,20.844,40.0]
[1680627755467,17.0,20.863,20.844,20.0]
[1680627755675,17.0,20.863,20.844,40.0]
[1680627755867,17.0,20.863,20.846,20.0]
[1680627756180,17.0,20.864,20.846,20.0]
[1680627756758,17.0,20.865,20.846,20.0]
[1680627757458,17.0,20.865,20.847,17.0]
[1680627757658,117.1103,20.866,20.848,20.0]
[1680627757851,20.0,20.865,20.847,17.0]
[1680627758062,20.0,20.865,20.846,7.19900344]
[1680627758476,20.0,20.865,20.846,27.19900344]
[1680627758851,17.0,20.864,20.846,27.19900344]
[1680627761283,17.0,20.864,20.846,7.19900344]
[1680627761879,17.0,20.864,20.846,27.19900344]
[1680627765372,20.0,20.865,20.846,27.19900344]
[1680627765579,20.0,20.865,20.848,20.0]
[1680627765760,20.0,20.865,20.849,17.0]
[1680627766162,20.0,20.865,20.85,20.0]
[1680627766362,117.1103,20.866,20.85,20.0]
[1680627766661,118.4383,20.867,20.851,20.0]
[1680627766868,118.4383,20.867,20.852,37.0]
[1680627767067,118.4383,20.867,20.853,20.0]
[1680627767262,118.4383,20.867,20.854,17.0]
[1680627767586,118.4383,20.867,20.855,20.0]
[1680627768673,27.199003,20.871,20.855,20.0]
[1680627768871,27.199003,20.871,20.856,17.0]
[1680627769080,27.199003,20.871,20.857,20.0]
[1680627769260,27.199003,20.871,20.858,17.0]
[1680627769673,27.199003,20.871,20.86,27.22]
[1680627770664,27.199003,20.871,20.861,20.0]
[1680627772580,27.199003,20.871,20.86,27.22]
[1680627772979,27.199003,20.871,20.861,20.0]
[1680627774479,27.199003,20.871,20.86,27.22]
[1680627775275,27.199003,20.871,20.861,20.0]
[1680627775880,27.199003,20.871,20.86,27.22]
[1680627776575,27.199003,20.871,20.856,115.27740344]
[1680627776783,27.199003,20.871,20.856,108.0784]
[1680627780788,34.55581009,20.877,20.856,108.0784]
[1680627782892,17.0,20.872,20.854,20.0]
[1680627783980,17.0,20.874,20.854,20.0]
[1680627784191,27.19900344,20.876,20.854,20.0]
[1680627784379,27.19900344,20.876,20.855,17.0]
[1680627784577,27.19900344,20.876,20.856,20.0]
[1680627784891,20.0,20.876,20.857,17.0]
[1680627786292,20.0,20.875,20.857,17.0]
[1680627787291,20.0,20.876,20.858,20.0]
[1680627787497,17.0,20.875,20.859,17.0]
[1680627789304,20.0,20.876,20.859,17.0]
[1680627789595,19.9082231,20.876,20.86,27.22]
[1680627789778,19.9082231,20.876,20.861,17.0]
[1680627789978,118.9752,20.878,20.862,20.0]
[1680627790179,118.9752,20.878,20.863,17.0]
[1680627790381,118.9752,20.878,20.864,20.0]
[1680627790583,118.9752,20.878,20.865,20.0]
[1680627793007,14.44204362,20.886,20.866,17.0]
[1680627793206,20.0,20.885,20.866,17.0]
[1680627793503,20.0,20.886,20.867,7.19900344]
[1680627793692,20.0,20.886,20.868,17.0]
[1680627794098,20.0,20.886,20.869,7.19900344]
[1680627794408,20.0,20.886,20.871,20.0]
[1680627794607,20.0,20.886,20.872,17.0]
[1680627794813,20.0,20.886,20.871,20.0]
[1680627795302,20.0,20.886,20.872,17.0]
[1680627795601,20.0,20.886,20.873,20.0]
[1680627796102,20.0,20.888,20.873,20.0]
[1680627797910,38.355028,20.882,20.873,20.0]
[1680627798596,38.355028,20.882,20.872,17.0]
[1680627799896,38.355028,20.882,20.873,40.0]
[1680627800091,38.355028,20.882,20.874,17.0]
[1680627800495,38.355028,20.882,20.875,20.0]
[1680627800902,38.355028,20.882,20.874,17.0]
[1680627801117,38.355028,20.882,20.87,54.56]
[1680627801395,38.355028,20.882,20.871,37.0]
[1680627801812,38.355028,20.882,20.872,20.0]
[1680627802005,38.355028,20.882,20.873,37.0]
[1680627802405,38.355028,20.882,20.874,20.0]
[1680627802611,38.355028,20.882,20.875,17.0]
[1680627805818,38.355028,20.882,20.874,20.0]
[1680627807422,38.355028,20.882,20.875,17.0]
[1680627807924,38.355028,20.882,20.874,20.0]
[1680627811930,38.355028,20.882,20.873,20.0]
[1680627814733,20.0,20.893,20.873,20.0]
[1680627814932,17.0,20.888,20.873,20.0]
[1680627816938,20.0,20.893,20.874,20.0]
[1680627817127,17.0,20.888,20.874,20.0]
[1680627817440,164.12533524,20.894,20.874,20.0]
[1680627817944,20.0,20.893,20.875,17.0]
[1680627819132,164.12533524,20.894,20.875,36.161]
[1680627819326,164.12533524,20.894,20.876,20.0]
[1680627819528,164.12533524,20.894,20.877,17.0]
[1680627820527,108.0337,20.894,20.88,27.22]
[1680627820727,108.0337,20.894,20.881,17.0]
[1680627821136,108.0337,20.894,20.882,20.0]
[1680627821633,108.0337,20.894,20.881,17.0]
[1680627821824,108.0337,20.894,20.882,20.0]
[1680627822021,115.1481,20.9,20.882,39.154]
[1680627822221,115.1481,20.9,20.883,17.0]
[1680627822423,20.0,20.899,20.884,20.0]
[1680627822627,20.0,20.899,20.885,17.0]
[1680627822827,20.0,20.899,20.883,17.0]
[1680627823029,115.1481,20.9,20.884,20.0]
[1680627823235,17.0,20.899,20.884,20.0]
[1680627824429,115.1481,20.9,20.884,20.0]
[1680627824629,17.0,20.899,20.884,20.0]
[1680627825542,17.0,20.899,20.885,20.0]
[1680627825735,17.0,20.899,20.884,20.0]
[1680627826647,17.0,20.899,20.885,20.0]
[1680627827746,17.0,20.899,20.884,20.0]
[1680627828943,20.0,20.898,20.884,20.0]
[1680627829258,17.0,20.897,20.884,20.0]
[1680627829441,115.1481,20.9,20.883,20.0]
[1680627829649,115.1481,20.9,20.884,24.19900344]
[1680627829845,17.0,20.899,20.883,20.0]
[1680627830158,17.0,20.899,20.884,20.0]
[1680627832139,17.0,20.899,20.883,40.0]
[1680627833533,17.0,20.899,20.883,20.0]
[1680627834233,17.0,20.899,20.884,20.0]
[1680627834642,115.1481,20.9,20.884,20.0]
[1680627834842,115.1481,20.9,20.885,17.0]
[1680627835649,115.1481,20.9,20.883,20.0]
[1680627835849,17.0,20.899,20.883,20.0]
[1680627836046,20.0,20.898,20.883,20.0]
[1680627836251,17.0,20.899,20.883,20.0]
[1680627836550,17.0,20.899,20.884,20.0]
[1680627837454,17.0,20.899,20.883,20.0]
[1680627838838,20.0,20.898,20.881,20.0]
[1680627839138,17.0,20.897,20.881,20.0]
[1680627839339,20.0,20.896,20.879,20.0]
[1680627839548,17.0,20.895,20.879,20.0]
[1680627840250,17.0,20.895,20.878,20.0]
[1680627842856,17.0,20.895,20.879,37.0]
[1680627843045,17.0,20.895,20.88,20.0]
[1680627847658,20.0,20.894,20.88,20.0]
[1680627847849,17.0,20.893,20.879,37.0]
[1680627848358,20.0,20.892,20.879,37.0]
[1680627848664,17.0,20.891,20.879,37.0]
[1680627849647,17.0,20.892,20.879,37.0]
[1680627849952,17.0,20.893,20.879,37.0]
[1680627851659,17.0,20.895,20.879,37.0]
[1680627851852,20.0,20.894,20.879,37.0]
[1680627852058,17.0,20.893,20.879,37.0]
[1680627857564,17.0,20.893,20.875,134.0738]
[1680627857751,17.0,20.893,20.876,17.0]
[1680627858148,20.0,20.894,20.876,17.0]
[1680627858350,20.0,20.895,20.877,20.0]
[1680627858552,20.0,20.897,20.878,17.0]
[1680627858751,20.0,20.897,20.879,20.0]
[1680627858951,20.0,20.897,20.88,17.0]
[1680627859867,17.0,20.896,20.88,17.0]
[1680627860071,20.0,20.895,20.88,17.0]
[1680627860367,17.0,20.894,20.879,20.0]
[1680627864065,20.0,20.895,20.879,20.0]
[1680627864274,17.0,20.894,20.879,20.0]
[1680627864464,17.0,20.895,20.879,20.0]
[1680627864668,20.0,20.894,20.879,20.0]
[1680627865779,20.0,20.894,20.878,108.2655]
[1680627866071,20.0,20.894,20.879,17.0]
[1680627867674,20.0,20.894,20.878,108.2655]
[1680627867876,17.0,20.893,20.878,108.2655]
[1680627868466,17.0,20.893,20.879,20.0]
[1680627870167,20.0,20.894,20.88,27.22]
[1680627870356,20.0,20.897,20.881,20.0]
[1680627870562,20.0,20.898,20.881,20.0]
[1680627870866,20.0,20.899,20.881,20.0]
[1680627871378,17.0,20.898,20.881,20.0]
[1680627871669,20.0,20.897,20.881,20.0]
[1680627871874,20.0,20.899,20.882,17.0]
[1680627872377,20.0,20.899,20.883,20.0]
[1680627872880,17.0,20.898,20.883,20.0]
[1680627873075,20.0,20.897,20.883,20.0]
[1680627875581,20.0,20.897,20.885,20.0]
[1680627876082,20.0,20.899,20.885,20.0]
[1680627876669,115.1481,20.9,20.885,20.0]
[1680627876863,115.1481,20.9,20.886,17.0]
[1680627877286,113.4474,20.905,20.886,17.0]
[1680627877469,113.4474,20.905,20.887,20.0]
[1680627877670,49.92775746,20.906,20.888,17.0]
[1680627879090,64.40086904,20.906,20.888,17.0]
[1680627879294,64.40086904,20.906,20.885,20.0]
[1680627879591,17.0,20.902,20.885,20.0]
[1680627879784,64.40086904,20.906,20.885,20.0]
[1680627879969,20.0,20.905,20.885,20.0]
[1680627880165,17.0,20.902,20.885,20.0]
[1680627881187,17.0,20.902,20.886,17.0]
[1680627881383,17.0,20.904,20.883,20.0]
[1680627881589,17.0,20.904,20.884,57.0]
[1680627882374,17.0,20.905,20.884,57.0]
[1680627882579,20.0,20.904,20.884,57.0]
[1680627882768,17.0,20.903,20.884,57.0]
[1680627883981,20.0,20.904,20.884,57.0]
[1680627884187,20.0,20.905,20.884,57.0]
[1680627884885,20.0,20.906,20.884,57.0]
[1680627885671,20.0,20.908,20.884,57.0]
[1680627885984,17.0,20.907,20.884,57.0]
[1680627886170,20.0,20.906,20.884,57.0]
[1680627886371,17.0,20.905,20.884,57.0]
[1680627886589,20.0,20.904,20.884,57.0]
[1680627887681,20.0,20.904,20.884,76.152]
[1680627887979,20.0,20.906,20.884,76.152]
[1680627888987,17.0,20.905,20.884,76.152]
[1680627889179,20.0,20.904,20.884,76.152]
[1680627891201,20.0,20.904,20.884,59.152]
[1680627891378,17.0,20.903,20.884,20.0]
[1680627891577,20.0,20.902,20.884,20.0]
[1680627891889,17.0,20.901,20.883,20.0]
[1680627892781,110.0634,20.9,20.883,20.0]
[1680627892982,17.0,20.899,20.883,20.0]
[1680627893392,17.0,20.899,20.882,20.0]
[1680627893594,17.0,20.899,20.883,20.0]
[1680627898796,17.0,20.899,20.882,20.0]
[1680627899282,20.0,20.898,20.882,20.0]
[1680627899485,17.0,20.897,20.882,20.0]
[1680627899684,17.0,20.897,20.883,20.0]
[1680627899885,17.0,20.898,20.882,20.0]
[1680627900804,20.0,20.897,20.881,115.0313]
[1680627900999,17.0,20.896,20.881,115.0313]
[1680627901302,20.0,20.895,20.881,115.0313]
[1680627901602,17.0,20.894,20.881,115.0313]
[1680627907715,17.0,20.894,20.876,14.63673265]
[1680627907898,17.0,20.894,20.879,20.0]
[1680627913498,20.0,20.895,20.881,20.0]
[1680627913697,14.70697549,20.897,20.881,20.0]
[1680627913907,37.0,20.896,20.881,20.0]
[1680627914115,20.0,20.896,20.881,20.0]
[1680627914301,17.0,20.895,20.881,20.0]
[1680627914502,20.0,20.894,20.881,20.0]
[1680627915314,20.0,20.894,20.88,27.26]
[1680627915919,17.0,20.893,20.88,27.26]
[1680627918122,17.0,20.893,20.881,20.0]
[1680627919623,20.0,20.894,20.881,20.0]
[1680627919813,20.0,20.899,20.883,20.0]
[1680627920016,20.0,20.899,20.884,17.0]
[1680627920727,20.0,20.899,20.883,20.0]
[1680627921114,17.0,20.898,20.883,20.0]
[1680627921315,20.0,20.897,20.883,20.0]
[1680627924433,110.0634,20.9,20.883,20.0]
[1680627924620,110.0634,20.9,20.884,37.0]
[1680627925024,110.0634,20.9,20.885,20.0]
[1680627925324,110.0634,20.9,20.887,20.0]
[1680627927736,110.0634,20.9,20.885,20.0]
[1680627929835,17.0,20.899,20.885,20.0]
[1680627931323,110.0634,20.9,20.885,20.0]
[1680627931617,17.0,20.899,20.885,20.0]
[1680627932637,110.0634,20.9,20.885,20.0]
[1680627935339,110.0634,20.9,20.886,17.0]
[1680627936953,110.0634,20.9,20.885,20.0]
[1680627939453,110.0634,20.9,20.886,17.0]
[1680627939646,110.0634,20.9,20.885,20.0]
[1680627941258,110.0634,20.9,20.884,20.0]
[1680627941437,17.0,20.899,20.884,20.0]
[1680627942041,17.0,20.899,20.882,20.0]
[1680627942742,17.0,20.899,20.883,20.0]
[1680627942948,17.0,20.899,20.884,20.0]
[1680627952750,16.93952893,20.899,20.884,20.0]
[1680627954846,16.93952893,20.899,20.88,27.3]
[1680627955057,20.0,20.898,20.881,111.1466]
[1680627955548,17.0,20.897,20.881,111.1466]
[1680627955855,40.0,20.896,20.881,111.1466]
[1680627956040,17.0,20.895,20.881,111.1466]
[1680627956241,20.0,20.894,20.881,111.1466]
[1680627956450,17.0,20.893,20.881,111.1466]
[1680627956842,17.0,20.895,20.881,111.1466]
[1680627957042,20.0,20.894,20.881,111.1466]
[1680627957246,17.0,20.893,20.881,111.1466]
[1680627957849,20.0,20.894,20.881,111.1466]
[1680627958165,20.0,20.895,20.881,111.1466]
[1680627958353,20.0,20.899,20.881,111.1466]
[1680627958559,17.0,20.898,20.882,20.0]
[1680627958858,20.0,20.897,20.882,20.0]
[1680627959057,17.0,20.896,20.882,20.0]
[1680627959258,20.0,20.895,20.882,20.0]
[1680627961868,110.0634,20.9,20.882,20.0]
[1680627962072,17.0,20.899,20.883,20.0]
[1680627962370,17.0,20.899,20.882,20.0]
[1680627962873,20.0,20.898,20.881,111.1466]
[1680627963056,17.0,20.897,20.881,111.1466]
[1680627963257,20.0,20.896,20.881,111.1466]
[1680627963465,17.0,20.895,20.88,27.18]
[1680627963766,40.0,20.894,20.875,20.0]